bitfinex-derivatives/quotes_ETHF0:USTF0_20240922
["timestamp","ask_amount","ask_price","bid_price","bid_amount"]
[1727013045418,0.76062,2571.8,2571.5,0.78975]
[1727013045719,0.3715,2571.7,2571.6,8.08884]
[1727013047115,0.3715,2571.7,2571.6,7.7]
[1727013047316,0.3715,2571.7,2571.6,8.08884]
[1727013048011,0.38878,2572.0,2571.7,0.38882]
[1727013048226,0.77378,2572.0,2571.7,0.38882]
[1727013048529,1.77950198,2572.0,2571.7,0.38882]
[1727013048916,1.77950198,2572.0,2571.6,7.7]
[1727013048917,0.38879,2571.9,2571.6,8.08883]
[1727013049416,1.77951198,2572.0,2571.7,0.38882]
[1727013050120,1.77951198,2572.0,2571.6,7.7]
[1727013050320,1.77951198,2572.0,2571.7,0.38881]
[1727013050521,0.38879,2571.9,2571.7,0.38881]
[1727013050819,3.2078,2571.8,2571.7,0.38881]
[1727013051028,1.39451198,2571.9,2571.6,8.08883]
[1727013051215,3.2078,2571.8,2571.6,8.08883]
[1727013051422,4.21352198,2571.8,2571.6,8.08883]
[1727013051917,4.21352198,2571.8,2571.7,0.38882]
[1727013052225,4.21352198,2571.8,2571.6,8.08883]
[1727013052822,4.21352198,2571.8,2571.7,0.38882]
[1727013053225,4.21352198,2571.8,2571.6,8.08883]
[1727013053428,4.71133909,2571.8,2571.7,0.38882]
[1727013055427,4.71133909,2571.8,2571.6,7.7]
[1727013055622,5.10015909,2571.8,2571.6,7.7]
[1727013055822,1.90593909,2571.7,2571.6,7.7]
[1727013056126,1.90593909,2571.7,2571.4,3.14486]
[1727013056127,2.29475909,2571.7,2571.4,3.14486]
[1727013056328,1.39720124,2571.6,2571.4,2.756]
[1727013056524,0.76855,2571.5,2571.3,0.38887]
[1727013056729,0.76855,2571.5,2571.1,0.4038]
[1727013056730,1.39723124,2571.4,2571.1,0.38891]
[1727013056923,4.21592474,2571.3,2571.1,0.38891]
[1727013057223,4.21592474,2571.3,2571.2,7.7]
[1727013057624,4.21592474,2571.3,2571.2,8.0889]
[1727013057822,1.00812474,2571.3,2571.2,8.0889]
[1727013058020,1.00812474,2571.4,2571.3,0.38888]
[1727013058224,1.50353909,2571.5,2571.4,0.38887]
[1727013058225,1.00812474,2571.5,2571.4,0.38887]
[1727013059529,4.21592474,2571.6,2571.4,0.38887]
[1727013060430,4.60476474,2571.6,2571.4,0.38887]
[1727013060633,1.00812474,2571.5,2571.4,0.38887]
[1727013061829,4.21592474,2571.6,2571.5,0.38885]
[1727013062134,3.2078,2571.9,2571.5,0.97214]
[1727013062425,1.00812474,2572.0,2571.9,0.38879]
[1727013062630,4.71133909,2572.1,2572.0,0.38878]
[1727013062833,4.21549743,2572.1,2572.0,0.38878]
[1727013063224,1.00769743,2572.1,2572.0,0.38878]
[1727013063831,4.21549743,2572.1,2572.0,0.38878]
[1727013064240,4.21549743,2572.1,2571.8,0.3855]
[1727013064532,1.39647743,2572.0,2571.8,0.3888]
[1727013064729,1.39647743,2572.0,2571.9,0.38879]
[1727013064730,1.00769743,2572.0,2571.9,0.38879]
[1727013065427,1.39648743,2572.0,2571.8,0.3888]
[1727013065628,3.2078,2572.1,2571.7,0.38882]
[1727013065629,1.39649743,2571.9,2571.7,0.38882]
[1727013065932,4.60819743,2571.8,2571.7,0.38882]
[1727013066821,1.40039743,2571.8,2571.6,0.3835]
[1727013067026,1.00769743,2571.7,2571.3,0.4022]
[1727013067227,4.60434743,2571.5,2571.3,0.79108]
[1727013067439,1.39654743,2571.5,2571.3,0.79108]
[1727013067629,4.60434743,2571.5,2571.3,0.79108]
[1727013068130,4.71133909,2571.7,2571.3,0.4022]
[1727013068326,1.89236909,2571.7,2571.5,0.38885]
[1727013068631,0.38883,2571.7,2571.5,0.38885]
[1727013069034,3.59663,2571.7,2571.5,0.38885]
[1727013069234,3.2078,2571.7,2571.6,0.38884]
[1727013069529,1.50353909,2571.9,2571.8,0.38881]
[1727013069731,1.50353909,2571.9,2571.7,0.38882]
[1727013069732,1.89234909,2571.9,2571.7,0.38882]
[1727013069939,0.38881,2571.8,2571.6,0.38883]
[1727013070135,0.38882,2571.7,2571.5,0.38884]
[1727013070331,0.38885,2571.6,2571.4,3.10887]
[1727013071327,5.10016909,2571.7,2571.5,0.38884]
[1727013071727,1.89234909,2571.8,2571.6,0.38884]
[1727013075438,5.07863909,2572.0,2571.6,3.8888]
[1727013075640,5.07863909,2572.0,2571.7,0.7713]
[1727013075842,3.5751,2572.0,2571.8,0.3841]
[1727013076145,3.2078,2572.0,2571.9,0.38879]
[1727013077848,3.2078,2572.0,2571.8,0.38881]
[1727013077849,3.40228532,2572.0,2571.8,0.38881]
[1727013078046,3.2078,2572.0,2571.9,0.38879]
[1727013078545,1.51187138,2572.1,2572.0,0.38878]
[1727013079845,1.51187138,2572.2,2572.1,0.38876]
[1727013080043,1.51187138,2572.2,2572.1,1.18606]
[1727013080235,4.71967138,2572.3,2572.1,1.18606]
[1727013080437,1.51187138,2572.2,2572.1,1.18606]
[1727013080840,1.51187138,2572.2,2572.1,0.3958]
[1727013081036,1.51187138,2572.2,2572.0,0.38877]
[1727013081341,1.70633373,2572.2,2572.0,0.38877]
[1727013082045,1.51187138,2572.1,2572.0,0.38877]
[1727013082639,1.90817138,2572.1,2572.0,0.38877]
[1727013083445,2.10263655,2572.1,2572.0,0.38877]
[1727013084138,1.90817138,2572.1,2572.0,0.38877]
[1727013084340,2.10263528,2572.1,2572.0,0.38877]
[1727013084547,1.51187138,2572.1,2572.0,0.38877]
[1727013084952,5.60125879,2572.3,2572.1,0.38876]
[1727013085251,0.19446025,2572.2,2572.1,0.38876]
[1727013085450,0.19446025,2572.2,2572.0,0.38877]
[1727013085647,1.51460774,2572.1,2572.0,0.38877]
[1727013086647,1.51226799,2572.1,2572.0,0.38877]
[1727013086842,1.31780774,2572.1,2572.0,0.38877]
[1727013090950,1.51226868,2572.1,2572.0,0.38877]
[1727013091155,0.19446094,2572.1,2572.0,0.38877]
[1727013091750,0.19446436,2572.1,2572.0,0.38877]
[1727013092757,2.58793315,2572.2,2572.0,0.38877]
[1727013092955,0.19446436,2572.1,2572.0,0.38877]
[1727013093452,5.60125879,2572.3,2572.1,0.38876]
[1727013093755,0.19445963,2572.2,2572.1,0.38876]
[1727013094957,2.19917842,2572.2,2572.1,0.38876]
[1727013095156,0.19445963,2572.2,2572.1,0.38876]
[1727013095564,2.19917842,2572.2,2572.1,0.38876]
[1727013096062,2.58792842,2572.2,2572.0,0.38877]
[1727013096357,0.19446857,2572.1,2572.0,0.38877]
[1727013096563,0.57406868,2572.1,2572.0,0.38877]
[1727013097661,0.3796,2572.1,2572.0,0.38877]
[1727013097862,0.57406437,2572.1,2572.0,0.38877]
[1727013098951,0.19446117,2572.1,2572.0,0.38877]
[1727013099466,2.39346879,2572.2,2572.0,0.38877]
[1727013099762,3.5926,2572.3,2571.9,0.394]
[1727013099763,5.21251879,2572.3,2572.1,0.38876]
[1727013099963,0.19445071,2572.2,2572.1,0.38876]
[1727013100160,5.60125879,2572.3,2572.1,0.38876]
[1727013100469,0.38878,2572.0,2571.9,0.394]
[1727013100659,0.38879,2571.9,2571.7,3.0949]
[1727013101160,0.38879,2571.9,2571.7,3.48371]
[1727013101364,3.59659,2572.0,2571.8,0.38881]
[1727013101863,3.2078,2572.0,2571.9,0.38879]
[1727013102064,3.40227533,2572.0,2571.9,0.38879]
[1727013103063,3.40227088,2572.0,2571.9,0.38879]
[1727013103966,3.79105088,2572.0,2571.8,0.3888]
[1727013104153,3.59658,2572.0,2571.8,0.3888]
[1727013104555,5.60129879,2572.0,2571.8,0.3888]
[1727013105068,5.21251879,2572.0,2571.9,0.38879]
[1727013105265,3.40227856,2572.0,2571.9,0.38879]
[1727013105468,5.40699735,2572.0,2571.9,0.38879]
[1727013105664,3.40227856,2572.0,2571.9,0.38879]
[1727013106169,3.40227439,2572.0,2571.9,0.38879]
[1727013107766,5.40699318,2572.0,2571.9,0.38879]
[1727013110773,3.2078,2572.0,2571.9,0.38879]
[1727013112669,5.21251879,2572.2,2572.1,0.38876]
[1727013112874,5.40697877,2572.2,2572.1,0.38876]
[1727013114571,3.40225998,2572.2,2572.1,0.38876]
[1727013115773,3.40226012,2572.2,2572.1,0.38876]
[1727013117269,5.14564687,2572.2,2572.1,0.38876]
[1727013117468,5.14563982,2572.2,2572.1,0.38876]
[1727013117680,7.65153831,2572.2,2572.1,0.38876]
[1727013118367,5.14563982,2572.2,2572.1,0.38876]
[1727013118571,7.65153831,2572.2,2572.1,0.38876]
[1727013120386,5.53439982,2572.2,2572.1,0.38876]
[1727013120679,5.53521366,2572.2,2572.1,0.38876]
[1727013120875,5.14645366,2572.2,2572.1,0.38876]
[1727013121463,7.67422265,2572.2,2572.1,0.38876]
[1727013122079,7.67422265,2572.2,2572.1,0.77536]
[1727013123872,8.06297265,2572.2,2572.1,0.77536]
[1727013124074,5.53520366,2572.2,2572.1,0.38876]
[1727013124268,5.14645366,2572.2,2572.1,0.38876]
[1727013124675,5.53521366,2572.2,2572.0,0.38877]
[1727013124982,4.46672595,2572.1,2572.0,0.38877]
[1727013128775,4.46748597,2572.1,2572.0,0.38877]
[1727013133578,4.46689503,2572.1,2572.0,0.38877]
[1727013135973,4.85566503,2572.1,2571.8,1.40378416]
[1727013136179,4.85566503,2572.1,2571.8,3.43641]
[1727013136180,2.02185096,2571.9,2571.8,3.43641]
[1727013136375,2.02185096,2571.9,2571.8,3.92759329]
[1727013137874,2.21631401,2571.9,2571.8,3.92759329]
[1727013138074,2.02185096,2572.0,2571.9,0.38879]
[1727013139574,2.21631281,2572.0,2571.9,0.87994815]
[1727013139777,2.02185096,2572.0,2571.9,0.87994815]
[1727013140081,2.02185096,2572.0,2571.9,9.55193815]
[1727013140277,0.19446185,2572.0,2571.9,14.95257469]
[1727013140474,2.02185096,2572.1,2572.0,0.38878]
[1727013140883,2.21630168,2572.1,2572.0,0.38878]
[1727013141088,2.02185096,2572.1,2572.0,8.57992578]
[1727013141386,2.02185096,2572.1,2572.0,8.5799116]
[1727013141576,2.21630168,2572.1,2572.0,8.5799116]
[1727013141979,2.21630168,2572.1,2572.0,9.07832705]
[1727013142181,2.02185096,2572.2,2572.1,0.38876]
[1727013142685,2.21629896,2572.2,2572.1,0.38876]
[1727013143277,2.2162962,2572.2,2572.1,4.76782492]
[1727013143477,2.02185096,2572.4,2572.3,0.38873]
[1727013143683,2.21628,2572.4,2572.3,7.90577]
[1727013143978,0.19442904,2572.4,2572.3,16.0967462]
[1727013144489,5.22965096,2572.5,2572.4,0.38872]
[1727013144782,5.42407297,2572.5,2572.4,0.38872]
[1727013144984,5.42407297,2572.5,2572.4,4.27592]
[1727013145384,0.19442201,2572.5,2572.4,12.94772]
[1727013145585,2.02185096,2572.6,2572.5,0.3887]
[1727013145986,2.02185096,2572.6,2572.5,1.36046]
[1727013146183,2.02185096,2572.7,2572.6,0.38869]
[1727013146381,2.21625634,2572.8,2572.7,0.38867]
[1727013146684,1.51510502,2573.1,2573.0,1.3602]
[1727013146982,1.51510502,2573.3,2573.2,0.3886]
[1727013147381,1.51510502,2573.3,2573.2,4.6417]
[1727013147686,2.02185096,2573.6,2573.5,0.38855]
[1727013147884,5.22965096,2573.7,2573.6,0.38854]
[1727013148084,5.42399408,2573.7,2573.6,0.38854]
[1727013148279,3.40214312,2573.7,2573.6,0.38854]
[1727013148487,4.72029104,2573.7,2573.6,0.38854]
[1727013148677,3.2078,2573.7,2573.6,0.38854]
[1727013150284,0.7587,2573.8,2573.7,0.38852]
[1727013150595,3.9665,2573.8,2573.6,0.38853]
[1727013150887,3.9665,2573.8,2573.5,3.04654]
[1727013151281,4.35501,2573.8,2573.5,3.04654]
[1727013151482,3.9665,2573.8,2573.6,2.658]
[1727013151688,3.8856,2573.7,2573.2,8.0667]
[1727013151889,3.8856,2573.7,2572.6,4.102]
[1727013151890,3.2078,2573.5,2572.6,4.102]
[1727013152092,3.59643,2573.1,2572.7,3.04667]
[1727013152297,3.2078,2572.8,2572.7,3.04667]
[1727013152791,3.2078,2572.8,2572.7,10.74667]
[1727013153192,3.59646,2572.8,2572.6,3.0447]
[1727013153393,3.59646,2572.8,2572.5,3.0467]
[1727013153394,3.2078,2572.8,2572.5,3.0467]
[1727013154197,3.2078,2572.8,2572.6,0.38868]
[1727013154388,3.2078,2572.8,2572.7,0.38867]
[1727013155293,3.2078,2572.8,2572.7,8.08867]
[1727013155586,3.2078,2572.8,2572.5,2.658]
[1727013155587,3.59646,2572.8,2572.5,2.658]
[1727013155893,3.2078,2572.8,2572.5,3.04669]
[1727013156088,3.2078,2572.8,2572.6,8.08869]
[1727013157391,3.2078,2572.8,2572.7,0.38867]
[1727013157688,3.2078,2572.8,2572.7,0.75697]
[1727013158191,3.2078,2572.8,2572.7,0.3683]
[1727013158589,3.2078,2572.8,2572.7,0.75697]
[1727013159295,3.59646,2572.8,2572.6,2.683]
[1727013159588,0.38867,2572.7,2572.6,2.683]
[1727013159790,0.38867,2572.7,2572.5,7.7]
[1727013159992,0.3788,2572.6,2572.5,7.7]
[1727013163391,0.3788,2572.6,2572.5,8.0887]
[1727013166195,0.3788,2572.6,2572.5,7.7]
[1727013166888,3.59647,2572.8,2572.5,8.0887]
[1727013167598,3.2078,2572.8,2572.5,7.7]
[1727013167995,3.2078,2572.8,2572.7,0.38867]
[1727013173288,3.6084,2573.3,2573.1,0.38861]
[1727013173799,3.99698,2573.3,2573.1,0.38861]
[1727013174297,3.6084,2573.3,2573.1,0.38861]
[1727013174497,3.6084,2573.3,2573.0,0.38862]
[1727013174498,3.99698,2573.3,2573.0,0.38862]
[1727013174696,3.6084,2573.3,2572.8,0.768]
[1727013174909,3.2078,2573.0,2572.9,2.683]
[1727013175404,3.2078,2573.0,2572.8,0.3898]
[1727013175405,0.38864,2572.9,2572.8,0.3898]
[1727013175604,0.38864,2572.9,2572.7,0.38867]
[1727013175605,3.98073,2573.0,2572.7,3.07167]
[1727013175998,3.98073,2573.0,2572.8,0.38865]
[1727013177202,0.38865,2572.9,2572.7,3.07166]
[1727013177406,0.3678,2572.8,2572.7,3.07166]
[1727013178107,0.38867,2572.7,2572.6,3.0669]
[1727013178412,0.38868,2572.7,2572.5,0.3887]
[1727013178598,0.76629,2572.6,2572.4,3.07171]
[1727013178804,0.76629,2572.6,2572.4,10.77171]
[1727013179109,0.76629,2572.6,2572.4,8.08871]
[1727013179402,3.2078,2572.5,2572.4,10.77171]
[1727013179804,3.2078,2572.5,2572.4,8.08871]
[1727013180006,3.2078,2572.5,2572.4,10.77171]
[1727013181108,3.2078,2572.5,2572.4,8.08871]
[1727013181408,0.3776,2572.6,2572.5,0.3887]
[1727013183398,0.3776,2572.6,2572.4,7.7]
[1727013183603,0.3776,2572.6,2572.5,0.3887]
[1727013185315,0.3776,2572.6,2572.4,10.383]
[1727013185316,0.7663,2572.6,2572.4,10.77171]
[1727013185608,3.2078,2572.5,2572.4,8.08871]
[1727013185812,3.2078,2572.5,2572.4,0.38871]
[1727013190811,1.00831046,2572.7,2572.6,0.38869]
[1727013191217,1.00831046,2572.8,2572.7,0.38867]
[1727013191417,1.00831046,2572.8,2572.7,1.19107]
[1727013191617,1.00831046,2572.8,2572.7,1.56767]
[1727013195524,1.51249104,2572.8,2572.7,0.76527]
[1727013195822,1.51249104,2572.8,2572.7,0.38867]
[1727013196022,2.08260427,2572.8,2572.7,0.38867]
[1727013196223,1.88819104,2572.8,2572.7,0.38867]
[1727013196417,0.57011121,2572.8,2572.7,0.38867]
[1727013197418,2.59196217,2572.8,2572.7,0.38867]
[1727013198220,0.57011121,2572.8,2572.7,0.38867]
[1727013199025,0.19441121,2572.8,2572.7,0.38867]
[1727013199229,2.02185096,2572.9,2572.8,0.38866]
[1727013199430,5.22965096,2573.0,2572.9,0.38864]
[1727013199727,5.42405121,2573.0,2572.9,0.38864]
[1727013202324,1.71002141,2573.0,2572.9,0.38864]
[1727013202522,1.51562116,2573.0,2572.9,0.38864]
[1727013202736,2.02185096,2573.2,2572.8,1.35072]
[1727013203027,2.02185096,2573.2,2572.9,0.3868]
[1727013203226,2.21622771,2573.2,2573.1,0.38861]
[1727013203627,0.19437675,2573.3,2573.2,0.3886]
[1727013203922,2.2148257,2573.3,2573.2,0.3886]
[1727013204124,2.21484744,2573.3,2573.2,0.3886]
[1727013204624,2.21476365,2573.3,2573.2,0.3886]
[1727013205132,1.51529115,2573.3,2573.2,0.3886]
[1727013205320,1.51529115,2573.3,2573.2,0.7677]
[1727013206241,1.70966039,2573.3,2573.2,0.7677]
[1727013206438,0.3886,2573.2,2573.1,2.628]
[1727013206940,0.58296924,2573.2,2573.1,2.628]
[1727013207133,0.19436924,2573.2,2572.9,0.38864]
[1727013207334,1.00969622,2573.0,2572.9,0.38864]
[1727013207539,1.00970361,2573.0,2572.9,0.38864]
[1727013207732,1.79780361,2573.0,2572.9,0.38864]
[1727013208231,1.00970361,2573.0,2572.9,0.38864]
[1727013209240,1.00965644,2573.1,2572.8,2.628]
[1727013209544,1.00965644,2573.1,2573.0,0.38863]
[1727013209929,1.70890728,2573.2,2573.1,0.38861]
[1727013212236,1.70890841,2573.2,2573.1,0.38861]
[1727013214341,1.51452924,2573.2,2573.1,0.38861]
[1727013214533,1.70890703,2573.2,2573.1,0.38861]
[1727013214739,1.51452924,2573.2,2573.1,0.38861]
[1727013215952,1.51452924,2573.3,2573.2,0.3886]
[1727013216245,1.70890182,2573.3,2573.2,0.3886]
[1727013217139,1.51452924,2573.3,2573.2,0.3886]
[1727013217543,1.51374764,2573.3,2573.2,0.38859]
[1727013217838,2.09671132,2573.3,2573.1,0.38861]
[1727013218036,1.00915264,2573.2,2573.1,3.00161]
[1727013218241,1.90233764,2573.3,2573.1,3.00161]
[1727013218448,1.00915206,2573.2,2573.1,3.00161]
[1727013225850,1.39775206,2573.2,2573.0,0.38862]
[1727013226040,4.59786218,2573.1,2573.0,3.00162]
[1727013226853,0.38865,2572.9,2572.8,3.00165]
[1727013227055,1.39764203,2572.9,2572.6,10.313]
[1727013227254,1.00899203,2572.8,2572.7,0.38866]
[1727013230248,0.38867,2572.7,2572.6,7.7]
[1727013230454,7.45264184,2572.7,2572.2,0.3677]
[1727013230749,1.00892206,2572.3,2572.2,0.38875]
[1727013231057,1.00892206,2572.3,2572.2,7.7]
[1727013231256,4.72118309,2572.4,2572.3,0.38873]
[1727013231459,4.21670373,2572.4,2572.3,0.38873]
[1727013231657,3.2078,2572.4,2572.3,0.77023]
[1727013232354,1.41270373,2572.5,2572.4,0.38872]
[1727013232760,1.41270373,2572.5,2572.4,0.75642]
[1727013233063,0.4038,2572.5,2572.4,0.75642]
[1727013233358,1.41269241,2572.5,2572.4,0.75642]
[1727013234148,1.41263602,2572.5,2572.4,0.75642]
[1727013234747,1.00883602,2572.5,2572.4,4.64362]
[1727013235049,1.00883602,2572.6,2572.5,0.3887]
[1727013235449,1.00883602,2572.6,2572.5,8.0887]
[1727013235747,3.2078,2572.7,2572.6,0.38869]
[1727013236053,3.2078,2572.7,2572.6,0.76479]
[1727013236761,3.2078,2572.7,2572.6,8.46479]
[1727013238853,3.2078,2572.7,2572.6,7.7]
[1727013239050,3.5827,2572.7,2572.6,7.7]
[1727013239762,3.5827,2572.7,2572.6,8.08869]
[1727013240756,3.2078,2572.7,2572.6,8.08869]
[1727013241553,3.2078,2572.7,2572.6,11.97589]
[1727013241962,1.00882104,2573.0,2572.9,0.38864]
[1727013242459,4.21662104,2573.1,2573.0,0.38863]
[1727013242651,4.21662104,2573.1,2573.0,3.00163]
[1727013245358,4.21662104,2573.1,2573.0,6.88803]
[1727013245359,1.00882104,2573.1,2573.0,6.88803]
[1727013245557,1.00882104,2573.2,2573.0,6.88803]
[1727013245752,1.00882104,2573.2,2573.1,0.38861]
[1727013247658,1.00882104,2573.2,2573.1,3.00061]
[1727013251858,1.51338309,2573.3,2573.2,0.3886]
[1727013252059,1.70775928,2573.3,2573.2,0.3886]
[1727013253958,1.70775928,2573.3,2573.2,0.7723]
[1727013255257,1.70775877,2573.3,2573.2,0.7723]
[1727013255856,1.51338309,2573.3,2573.2,0.7723]
[1727013256265,1.51338309,2573.4,2573.3,0.38858]
[1727013256464,1.51487346,2573.4,2573.3,1.16388]
[1727013256858,4.72267346,2573.5,2573.4,0.38857]
[1727013258861,3.2078,2573.5,2573.4,0.38857]
[1727013259661,4.21780223,2573.5,2573.4,0.38857]
[1727013261667,4.60630223,2573.5,2573.4,3.00057]
[1727013263172,0.38857,2573.4,2573.3,0.38858]
[1727013263368,1.01000223,2573.4,2573.3,3.00058]
[1727013263571,3.98486,2573.5,2573.4,0.38857]
[1727013263769,5.49973346,2573.5,2573.4,0.38857]
[1727013264068,2.29193346,2573.5,2573.4,0.38857]
[1727013264371,5.49973346,2573.5,2573.4,0.38857]
[1727013265167,5.11117346,2573.5,2573.4,0.38857]
[1727013265563,4.21748448,2573.5,2573.4,0.38857]
[1727013266260,1.00968448,2573.5,2573.4,0.38857]
[1727013267072,1.00968448,2573.5,2573.4,0.78457]
[1727013267976,1.00968448,2573.6,2573.5,0.38855]
[1727013271572,0.38854,2573.6,2573.5,0.38855]
[1727013272166,1.90341346,2573.6,2573.5,0.38855]
[1727013272370,0.38854,2573.6,2573.5,0.38855]
[1727013272570,1.90341346,2573.6,2573.5,0.38855]
[1727013272872,1.51487346,2573.6,2573.4,3.00056]
[1727013273072,4.6166118,2573.5,2573.4,3.00056]
[1727013273664,4.6166118,2573.5,2573.4,0.38856]
[1727013278577,3.6073,2573.5,2573.4,0.38856]
[1727013278780,4.61734692,2573.5,2573.4,0.38856]
[1727013278982,5.00589692,2573.5,2573.4,0.38856]
[1727013279178,5.51072346,2573.5,2573.4,0.38856]
[1727013279382,5.51072346,2573.5,2573.3,2.99858]
[1727013279383,0.38857,2573.4,2573.3,2.99858]
[1727013279581,1.90344346,2573.4,2573.3,0.38858]
[1727013280470,0.58294037,2573.4,2573.3,0.38858]
[1727013280781,2.09887499,2573.4,2573.3,0.38858]
[1727013280982,2.09889233,2573.4,2573.3,0.38858]
[1727013281183,1.71032233,2573.4,2573.3,0.38858]
[1727013281574,1.71069088,2573.4,2573.3,0.38858]
[1727013282187,1.01090268,2573.4,2573.3,4.27418]
[1727013282481,4.21870268,2573.5,2573.4,0.38857]
[1727013282681,4.21883296,2573.5,2573.4,8.08857]
[1727013283574,3.2078,2573.5,2573.4,8.08857]
[1727013283776,4.21891894,2573.5,2573.4,8.08857]
[1727013283976,3.2078,2573.5,2573.4,8.08857]
[1727013284586,4.72412051,2573.5,2573.4,8.08857]
[1727013285384,1.51632051,2573.5,2573.4,8.08857]
[1727013285580,1.5171547,2573.5,2573.4,7.7]
[1727013285781,1.5171547,2573.5,2573.4,8.08857]
[1727013288184,1.5171547,2573.5,2573.4,10.69857]
[1727013288481,2.02038797,2573.5,2573.4,10.31]
[1727013288682,2.60327517,2573.5,2573.4,10.31]
[1727013288882,2.97637517,2573.5,2573.4,10.31]
[1727013289077,2.97638956,2573.5,2573.4,10.31]
[1727013289382,0.38857,2573.4,2573.2,1.40210316]
[1727013289684,2.60332107,2573.3,2573.2,2.9937]
[1727013289889,2.60332107,2573.3,2573.2,8.0886]
[1727013290079,2.21474107,2573.3,2573.1,0.38861]
[1727013290282,0.38862,2573.1,2572.9,2.99863]
[1727013290481,0.38867,2572.7,2572.6,1.78930316]
[1727013290681,0.38867,2572.7,2572.6,8.55972964]
[1727013290682,1.4000335,2572.7,2572.6,8.55972964]
[1727013290986,1.0113635,2572.7,2572.6,8.94841964]
[1727013291190,1.90571526,2572.8,2572.6,8.45779]
[1727013291387,1.51704526,2572.8,2572.7,0.38867]
[1727013291687,2.0949483,2572.8,2572.7,0.38867]
[1727013292183,2.09460303,2572.8,2572.7,0.38867]
[1727013293389,1.90019999,2572.8,2572.7,0.38867]
[1727013294589,2.28885999,2572.8,2572.6,8.45778]
[1727013294790,1.01056039,2572.7,2572.6,8.45778]
[1727013294986,1.39923039,2572.7,2572.6,7.7]
[1727013295287,4.60703039,2572.7,2572.5,2.9997]
[1727013295491,4.60703039,2572.7,2572.5,0.3887]
[1727013295684,4.60703039,2572.7,2572.5,8.0887]
[1727013296792,0.38869,2572.6,2572.5,7.7]
[1727013296987,0.38869,2572.6,2572.0,0.7641]
[1727013296988,6.10448694,2572.6,2572.0,0.7641]
[1727013297189,4.21784325,2572.3,2572.2,0.38874]
[1727013297383,4.21726801,2572.3,2572.2,0.38874]
[1727013297600,1.00946801,2572.3,2572.2,0.38874]
[1727013298394,1.90378488,2572.4,2572.2,0.38874]
[1727013298395,1.00946801,2572.4,2572.2,0.38874]
[1727013299091,4.21726801,2572.3,2572.1,7.7]
[1727013299396,3.2078,2572.3,2572.1,7.7]
[1727013299593,3.2078,2572.3,2572.2,0.38875]
[1727013302601,0.3713,2572.5,2572.4,0.38872]
[1727013302800,1.00946801,2572.6,2572.5,0.3887]
[1727013303004,4.21726801,2572.7,2572.5,0.3887]
[1727013303602,3.2078,2572.7,2572.5,0.3887]
[1727013303798,3.59647,2572.7,2572.5,0.3887]
[1727013303998,4.60593801,2572.7,2572.5,0.3887]
[1727013304204,3.59647,2572.7,2572.5,0.3887]
[1727013304596,4.21726801,2572.7,2572.3,0.38873]
[1727013304794,3.2078,2572.4,2572.3,0.38873]
[1727013305703,3.2078,2572.4,2572.2,0.38874]
[1727013305898,3.2078,2572.4,2572.2,2.99974]
[1727013306198,3.2078,2572.4,2572.3,0.38873]
[1727013306403,3.2078,2572.4,2572.1,10.311]
[1727013306602,3.2078,2572.4,2572.2,0.38873]
[1727013306603,0.3762,2572.3,2572.2,0.38873]
[1727013306802,0.3762,2572.3,2572.1,10.69975]
[1727013307407,0.3762,2572.3,2572.2,0.38875]
[1727013308501,0.3762,2572.3,2572.1,10.31]
[1727013308707,3.608,2572.4,2572.1,10.31]
[1727013308906,3.608,2572.4,2572.2,0.38874]
[1727013308907,3.99672,2572.4,2572.2,0.38874]
[1727013309208,3.2078,2572.4,2572.3,0.38873]
[1727013310505,3.2078,2572.7,2572.6,0.38869]
[1727013310898,3.2078,2573.0,2572.9,0.38864]
[1727013313405,0.38864,2572.9,2572.8,2.61]
[1727013313599,0.7659,2572.9,2572.8,2.99866]
[1727013313803,0.3923,2572.9,2572.8,2.99866]
[1727013314210,3.59643,2573.0,2572.8,2.99866]
[1727013314403,3.2078,2573.0,2572.9,0.38864]
[1727013314608,3.2078,2573.0,2572.9,0.77244]
[1727013314806,3.2078,2573.0,2572.9,1.14584]
[1727013315506,4.21726801,2573.5,2573.4,0.38857]
[1727013315714,3.2078,2573.5,2573.4,0.38857]
[1727013315911,1.39799801,2573.7,2573.5,0.38854]
[1727013316107,4.21726801,2573.8,2573.5,8.08854]
[1727013316310,4.21726801,2573.8,2573.6,0.4017]
[1727013316513,0.38852,2573.7,2573.6,0.4017]
[1727013318516,0.38853,2573.7,2573.5,7.7]
[1727013318903,0.38854,2573.6,2573.5,7.7]
[1727013319309,1.39800801,2573.6,2573.5,7.7]
[1727013319509,0.38855,2573.5,2573.3,2.99857]
[1727013319712,3.59635,2573.5,2573.3,2.99857]
[1727013319910,3.59635,2573.5,2573.4,0.38857]
[1727013319911,3.2078,2573.5,2573.4,0.38857]
[1727013320502,3.2078,2573.5,2573.3,10.69857]
[1727013320902,3.59636,2573.5,2573.3,10.69857]
[1727013321102,3.2078,2573.5,2573.3,10.69857]
[1727013321711,3.2078,2573.5,2573.4,0.38857]
[1727013321918,0.38853,2573.7,2573.5,0.38854]
[1727013322304,4.97377801,2573.8,2573.6,0.76073]
[1727013322512,4.97377801,2573.8,2573.6,0.3722]
[1727013322714,4.97377801,2573.8,2573.6,0.76073]
[1727013323217,4.60577801,2573.8,2573.6,0.76073]
[1727013323716,4.21726801,2573.8,2573.6,0.3722]
[1727013324107,4.60577801,2573.8,2573.6,0.76073]
[1727013325519,3.2078,2573.7,2573.6,0.76073]
[1727013327319,3.2078,2573.7,2573.4,0.38856]
[1727013327527,1.18514,2573.6,2573.4,0.38856]
[1727013327711,0.7966,2573.6,2573.5,0.38855]
[1727013327910,0.7966,2573.6,2573.4,0.38856]
[1727013328113,0.7966,2573.6,2573.5,0.38855]
[1727013329124,0.7966,2573.6,2573.4,2.609]
[1727013329422,0.76456,2573.5,2573.4,2.609]
[1727013329612,0.38858,2573.3,2573.2,7.7]
[1727013329818,0.38858,2573.3,2573.1,3.18720524]